[Event "Titled Tuesday Blitz August 22 Late 2023"]
[White "Cardozo Munar, Carlos Eduardo"]
[Black "Czerw, Dawid"]
[WhiteFideId "4409477"]
[BlackFideId "1145746"]
[WhiteElo "2283"]
[BlackElo "2444"]
[Result "0-1"]
[Round "5"]
[TimeControl "180+1"]
[Date "2023.08.22"]
[WhiteClock "0:00:12"]
[BlackClock "0:00:34"]
[Board "161"]

1. d4 {[%clk 0:02:55]}  d5 {[%clk 0:02:59]} 2. c3 {[%clk 0:02:47]}  Nf6 {[%clk 0:02:59]} 3. Nf3 {[%clk 0:02:46]}  g6 {[%clk 0:02:59]} 4. Bg5 {[%clk 0:02:43]}  Bg7 {[%clk 0:02:59]} 5. Nbd2 {[%clk 0:02:43]}  O-O {[%clk 0:03:00]} 6. e3 {[%clk 0:02:42]}  Nbd7 {[%clk 0:03:01]} 7. Bd3 {[%clk 0:02:36]}  c6 {[%clk 0:03:00]} 8. O-O {[%clk 0:02:37]}  Re8 {[%clk 0:03:01]} 9. h3 {[%clk 0:02:36]}  e5 {[%clk 0:03:00]} 10. dxe5 {[%clk 0:02:37]}  Nxe5 {[%clk 0:03:01]} 11. Nxe5 {[%clk 0:02:38]}  Rxe5 {[%clk 0:03:02]} 12. Nf3 {[%clk 0:02:38]}  Re8 {[%clk 0:03:01]} 13. Re1 {[%clk 0:02:39]}  Qb6 {[%clk 0:02:57]} 14. Qb3 {[%clk 0:02:38]}  h6 {[%clk 0:02:54]} 15. Qxb6 {[%clk 0:02:38]}  axb6 {[%clk 0:02:55]} 16. Bh4 {[%clk 0:02:38]}  b5 {[%clk 0:02:51]} 17. a3 {[%clk 0:02:29]}  Ne4 {[%clk 0:02:50]} 18. Nd4 {[%clk 0:02:13]}  Nc5 {[%clk 0:02:39]} 19. Bc2 {[%clk 0:02:09]}  Na4 {[%clk 0:02:38]} 20. Rab1 {[%clk 0:02:05]}  Bd7 {[%clk 0:02:36]} 21. Bg3 {[%clk 0:02:02]}  c5 {[%clk 0:02:29]} 22. Ne2 {[%clk 0:01:57]}  Nb6 {[%clk 0:02:28]} 23. Red1 {[%clk 0:01:55]}  Bc6 {[%clk 0:02:23]} 24. Bd6 {[%clk 0:01:55]}  Bf8 {[%clk 0:02:21]} 25. Bxf8 {[%clk 0:01:53]}  Kxf8 {[%clk 0:02:22]} 26. Nf4 {[%clk 0:01:49]}  g5 {[%clk 0:02:20]} 27. Nd3 {[%clk 0:01:46]}  Nd7 {[%clk 0:02:18]} 28. Rd2 {[%clk 0:01:45]}  b6 {[%clk 0:02:18]} 29. Rbd1 {[%clk 0:01:45]}  Nf6 {[%clk 0:02:17]} 30. Bb1 {[%clk 0:01:42]}  Re7 {[%clk 0:02:09]} 31. Ne1 {[%clk 0:01:38]}  Rae8 {[%clk 0:02:08]} 32. Nf3 {[%clk 0:01:38]}  Kg7 {[%clk 0:02:07]} 33. Ba2 {[%clk 0:01:33]}  Kg6 {[%clk 0:01:59]} 34. Kf1 {[%clk 0:01:29]}  h5 {[%clk 0:01:58]} 35. Bxd5 {[%clk 0:01:05]}  Nxd5 {[%clk 0:01:52]} 36. Rxd5 {[%clk 0:01:06]}  Bxd5 {[%clk 0:01:51]} 37. Rxd5 {[%clk 0:01:07]}  f6 {[%clk 0:01:51]} 38. Rd6 {[%clk 0:01:07]}  Re6 {[%clk 0:01:50]} 39. Rd7 {[%clk 0:01:07]}  g4 {[%clk 0:01:47]} 40. hxg4 {[%clk 0:01:04]}  hxg4 {[%clk 0:01:48]} 41. Nh4+ {[%clk 0:01:04]}  Kg5 {[%clk 0:01:43]} 42. g3 {[%clk 0:01:05]}  R8e7 {[%clk 0:01:42]} 43. Rd8 {[%clk 0:01:05]}  f5 {[%clk 0:01:39]} 44. Rd5 {[%clk 0:01:03]}  Re5 {[%clk 0:01:37]} 45. Rd8 {[%clk 0:01:03]}  Rf7 {[%clk 0:01:31]} 46. Rg8+ {[%clk 0:01:02]}  Kh5 {[%clk 0:01:21]} 47. Rg6 {[%clk 0:00:58]}  b4 {[%clk 0:01:15]} 48. Rxb6 {[%clk 0:00:53]}  bxc3 {[%clk 0:01:14]} 49. bxc3 {[%clk 0:00:54]}  Ra7 {[%clk 0:01:13]} 50. Rf6 {[%clk 0:00:52]}  Rxa3 {[%clk 0:01:09]} 51. Nxf5 {[%clk 0:00:52]}  Rxc3 {[%clk 0:01:08]} 52. Nh4 {[%clk 0:00:34]}  Rc2 {[%clk 0:01:03]} 53. Rc6 {[%clk 0:00:33]}  Rd5 {[%clk 0:00:58]} 54. Ng6 {[%clk 0:00:31]}  Rdd2 {[%clk 0:00:54]} 55. Nf4+ {[%clk 0:00:32]}  Kg5 {[%clk 0:00:54]} 56. Ne6+ {[%clk 0:00:24]}  Kf5 {[%clk 0:00:54]} 57. Nxc5 {[%clk 0:00:15]}  Rxf2+ {[%clk 0:00:54]} 58. Ke1 {[%clk 0:00:16]}  Rg2 {[%clk 0:00:51]} 59. Kd1 {[%clk 0:00:16]}  Ra2 {[%clk 0:00:50]} 60. Nd3 {[%clk 0:00:15]}  Rad2+ {[%clk 0:00:45]} 61. Ke1 {[%clk 0:00:15]}  Rxd3 {[%clk 0:00:46]} 62. Rc5+ {[%clk 0:00:15]}  Ke4 {[%clk 0:00:43]} 63. Kf1 {[%clk 0:00:16]}  Ra2 {[%clk 0:00:41]} 64. Rc4+ {[%clk 0:00:17]}  Kxe3 {[%clk 0:00:40]} 65. Rc1 {[%clk 0:00:16]}  Kf3 {[%clk 0:00:38]} 66. Kg1 {[%clk 0:00:17]}  Kxg3 {[%clk 0:00:37]} 67. Kh1 {[%clk 0:00:17]}  Rh2+ {[%clk 0:00:35]} 68. Kg1 {[%clk 0:00:18]}  Kh3 {[%clk 0:00:35]} 69. Re1 {[%clk 0:00:12]}  Rg3+ {[%clk 0:00:33]} 70. Kf1 {[%clk 0:00:13]}  Rh1+ {[%clk 0:00:34]} 71. Kf2 {[%clk 0:00:14]}  Rg2+ {[%clk 0:00:34]} 72. Ke3 {[%clk 0:00:13]}  Rxe1+ {[%clk 0:00:35]} 73. Kf4 {[%clk 0:00:12]}  Rf2+ {[%clk 0:00:34]} 0-1


[Site "https://www.chess.com"]

[Event "Titled Tuesday Blitz August 22 Late 2023"]
[White "Baches Garcia, Guillermo"]
[Black "Chemin, Justo Reinaldo"]
[WhiteFideId "2209764"]
[BlackFideId "2101580"]
[WhiteElo "2429"]
[BlackElo "2272"]
[Result "0-1"]
[Round "5"]
[TimeControl "180+1"]
[Date "2023.08.22"]
[WhiteClock "0:00:00"]
[BlackClock "0:00:05"]
[Board "162"]

1. e4 {[%clk 0:03:00]}  e6 {[%clk 0:02:58]} 2. d4 {[%clk 0:03:00]}  d5 {[%clk 0:02:58]} 3. exd5 {[%clk 0:02:57]}  exd5 {[%clk 0:02:58]} 4. Nf3 {[%clk 0:02:57]}  Bf5 {[%clk 0:02:53]} 5. Bd3 {[%clk 0:02:57]}  Bxd3 {[%clk 0:02:52]} 6. Qxd3 {[%clk 0:02:55]}  c6 {[%clk 0:02:51]} 7. O-O {[%clk 0:02:52]}  Be7 {[%clk 0:02:51]} 8. Re1 {[%clk 0:02:52]}  Nf6 {[%clk 0:02:50]} 9. Bg5 {[%clk 0:02:50]}  O-O {[%clk 0:02:48]} 10. Nbd2 {[%clk 0:02:47]}  Nbd7 {[%clk 0:02:47]} 11. c3 {[%clk 0:02:47]}  Re8 {[%clk 0:02:47]} 12. Ne5 {[%clk 0:02:46]}  Nxe5 {[%clk 0:02:41]} 13. dxe5 {[%clk 0:02:45]}  Nd7 {[%clk 0:02:41]} 14. Bxe7 {[%clk 0:02:40]}  Qxe7 {[%clk 0:02:37]} 15. f4 {[%clk 0:02:40]}  Rad8 {[%clk 0:02:13]} 16. Nf3 {[%clk 0:02:39]}  Nc5 {[%clk 0:02:10]} 17. Qe3 {[%clk 0:02:31]}  Ne4 {[%clk 0:02:10]} 18. Nd2 {[%clk 0:02:24]}  Nxd2 {[%clk 0:02:01]} 19. Qxd2 {[%clk 0:02:13]}  c5 {[%clk 0:02:01]} 20. f5 {[%clk 0:02:09]}  c4 {[%clk 0:01:43]} 21. Qf4 {[%clk 0:02:07]}  Qc5+ {[%clk 0:01:41]} 22. Kh1 {[%clk 0:02:00]}  d4 {[%clk 0:01:34]} 23. f6 {[%clk 0:01:59]}  d3 {[%clk 0:01:23]} 24. Qg4 {[%clk 0:01:48]}  g6 {[%clk 0:01:21]} 25. Qg5 {[%clk 0:01:25]}  d2 {[%clk 0:01:14]} 26. Rf1 {[%clk 0:01:22]}  Rxe5 {[%clk 0:01:09]} 27. Qh6 {[%clk 0:01:19]}  Qf8 {[%clk 0:01:09]} 28. Qf4 {[%clk 0:01:19]}  Rf5 {[%clk 0:01:04]} 29. Qxc4 {[%clk 0:01:14]}  Rxf1+ {[%clk 0:01:00]} 30. Qxf1 {[%clk 0:01:14]}  Qd6 {[%clk 0:00:58]} 31. Rd1 {[%clk 0:01:11]}  Qe5 {[%clk 0:00:53]} 32. h3 {[%clk 0:01:07]}  Rd6 {[%clk 0:00:52]} 33. Qf2 {[%clk 0:01:04]}  Qd5 {[%clk 0:00:25]} 34. Qf4 {[%clk 0:00:55]}  Qd3 {[%clk 0:00:21]} 35. Kh2 {[%clk 0:00:42]}  a5 {[%clk 0:00:17]} 36. a4 {[%clk 0:00:38]}  Qd5 {[%clk 0:00:17]} 37. Kh1 {[%clk 0:00:27]}  h5 {[%clk 0:00:16]} 38. Kh2 {[%clk 0:00:27]}  Kh7 {[%clk 0:00:16]} 39. Kh1 {[%clk 0:00:25]}  g5 {[%clk 0:00:13]} 40. Qe3 {[%clk 0:00:16]}  Kg6 {[%clk 0:00:13]} 41. Qf2 {[%clk 0:00:14]}  Qd3 {[%clk 0:00:08]} 42. Qg1 {[%clk 0:00:03]}  Rxf6 {[%clk 0:00:07]} 43. Qc5 {[%clk 0:00:00]}  Qe2 {[%clk 0:00:05]} 0-1


[Site "https://www.chess.com"]

[Event "Titled Tuesday Blitz August 22 Late 2023"]
[White "Ai, Evan"]
[Black "Onthequiet"]
[WhiteFideId "2094770"]
[WhiteElo "2274"]
[BlackElo "2426"]
[Result "0-1"]
[Round "5"]
[TimeControl "180+1"]
[Date "2023.08.22"]
[WhiteClock "0:00:00"]
[BlackClock "0:01:08"]
[Board "163"]

1. e4 {[%clk 0:03:00]}  c6 {[%clk 0:02:59]} 2. d4 {[%clk 0:02:59]}  d5 {[%clk 0:02:59]} 3. exd5 {[%clk 0:03:00]}  cxd5 {[%clk 0:02:59]} 4. Bf4 {[%clk 0:02:59]}  Nc6 {[%clk 0:02:58]} 5. Nf3 {[%clk 0:02:59]}  Nf6 {[%clk 0:02:58]} 6. Bb5 {[%clk 0:02:57]}  Qb6 {[%clk 0:02:56]} 7. Bxc6+ {[%clk 0:02:51]}  bxc6 {[%clk 0:02:56]} 8. b3 {[%clk 0:02:49]}  Ne4 {[%clk 0:02:51]} 9. O-O {[%clk 0:02:34]}  Bg4 {[%clk 0:02:49]} 10. c3 {[%clk 0:02:21]}  e6 {[%clk 0:02:48]} 11. h3 {[%clk 0:02:19]}  Bh5 {[%clk 0:02:47]} 12. Qd3 {[%clk 0:02:11]}  Be7 {[%clk 0:02:41]} 13. Nbd2 {[%clk 0:02:05]}  Bg6 {[%clk 0:02:41]} 14. Qe3 {[%clk 0:02:05]}  O-O {[%clk 0:02:32]} 15. Ne5 {[%clk 0:01:57]}  Nxd2 {[%clk 0:02:26]} 16. Qxd2 {[%clk 0:01:58]}  Rfd8 {[%clk 0:02:24]} 17. Nxg6 {[%clk 0:01:27]}  hxg6 {[%clk 0:02:24]} 18. Qc2 {[%clk 0:01:15]}  c5 {[%clk 0:02:22]} 19. Be3 {[%clk 0:01:09]}  Rac8 {[%clk 0:02:22]} 20. Rfd1 {[%clk 0:01:01]}  a5 {[%clk 0:02:20]} 21. Rab1 {[%clk 0:00:58]}  Qa6 {[%clk 0:02:18]} 22. dxc5 {[%clk 0:00:20]}  Bxc5 {[%clk 0:02:18]} 23. Qd2 {[%clk 0:00:17]}  Qa7 {[%clk 0:02:00]} 24. b4 {[%clk 0:00:14]}  Bxe3 {[%clk 0:01:59]} 25. Qxe3 {[%clk 0:00:12]}  Qxe3 {[%clk 0:01:59]} 26. fxe3 {[%clk 0:00:13]}  Rxc3 {[%clk 0:01:59]} 27. b5 {[%clk 0:00:12]}  Rxe3 {[%clk 0:01:56]} 28. b6 {[%clk 0:00:12]}  Rb8 {[%clk 0:01:56]} 29. Rb5 {[%clk 0:00:12]}  Rc3 {[%clk 0:01:47]} 30. Rdb1 {[%clk 0:00:10]}  a4 {[%clk 0:01:45]} 31. Ra5 {[%clk 0:00:02]}  Kh7 {[%clk 0:01:39]} 32. b7 {[%clk 0:00:01]}  Rc7 {[%clk 0:01:38]} 33. Ra7 {[%clk 0:00:02]}  d4 {[%clk 0:01:35]} 34. Kf2 {[%clk 0:00:02]}  e5 {[%clk 0:01:35]} 35. Kf3 {[%clk 0:00:02]}  f5 {[%clk 0:01:35]} 36. g4 {[%clk 0:00:03]}  Kh6 {[%clk 0:01:32]} 37. Ke2 {[%clk 0:00:03]}  e4 {[%clk 0:01:32]} 38. gxf5 {[%clk 0:00:03]}  gxf5 {[%clk 0:01:32]} 39. Rb6+ {[%clk 0:00:04]}  Kh5 {[%clk 0:01:30]} 40. Rb5 {[%clk 0:00:04]}  g6 {[%clk 0:01:29]} 41. Kd2 {[%clk 0:00:04]}  Kh4 {[%clk 0:01:22]} 42. Rb4 {[%clk 0:00:03]}  d3 {[%clk 0:01:21]} 43. Ke3 {[%clk 0:00:03]}  Kg3 {[%clk 0:01:19]} 44. Rb6 {[%clk 0:00:02]}  g5 {[%clk 0:01:18]} 45. Rb5 {[%clk 0:00:02]}  Rf7 {[%clk 0:01:11]} 46. Rb4 {[%clk 0:00:01]}  a3 {[%clk 0:01:09]} 47. Rb1 {[%clk 0:00:00]}  Kxh3 {[%clk 0:01:08]} 0-1


[Site "https://www.chess.com"]

[Event "Titled Tuesday Blitz August 22 Late 2023"]
[White "Fernandez Hernandez, Gerardo"]
[Black "Carroll, Thomas"]
[WhiteFideId "2207400"]
[BlackFideId "450111"]
[WhiteElo "2267"]
[BlackElo "2425"]
[Result "1-0"]
[Round "5"]
[TimeControl "180+1"]
[Date "2023.08.22"]
[WhiteClock "0:00:06"]
[BlackClock "0:00:11"]
[Board "164"]

1. e4 {[%clk 0:02:59]}  e6 {[%clk 0:03:00]} 2. d3 {[%clk 0:02:56]}  c5 {[%clk 0:02:49]} 3. g3 {[%clk 0:02:55]}  b5 {[%clk 0:02:48]} 4. Bg2 {[%clk 0:02:55]}  Bb7 {[%clk 0:02:49]} 5. f4 {[%clk 0:02:54]}  d6 {[%clk 0:02:48]} 6. Nf3 {[%clk 0:02:54]}  Be7 {[%clk 0:02:49]} 7. O-O {[%clk 0:02:53]}  Nf6 {[%clk 0:02:49]} 8. a4 {[%clk 0:02:47]}  b4 {[%clk 0:02:40]} 9. Nbd2 {[%clk 0:02:43]}  Nbd7 {[%clk 0:02:35]} 10. Qe2 {[%clk 0:02:30]}  O-O {[%clk 0:02:35]} 11. e5 {[%clk 0:02:22]}  dxe5 {[%clk 0:02:27]} 12. fxe5 {[%clk 0:02:22]}  Ng4 {[%clk 0:02:20]} 13. Nc4 {[%clk 0:02:15]}  Nb6 {[%clk 0:02:18]} 14. h3 {[%clk 0:01:51]}  Nxc4 {[%clk 0:02:16]} 15. dxc4 {[%clk 0:01:49]}  Bxf3 {[%clk 0:02:17]} 16. Bxf3 {[%clk 0:01:45]}  Qd4+ {[%clk 0:02:18]} 17. Kg2 {[%clk 0:01:37]}  Nxe5 {[%clk 0:02:12]} 18. Bxa8 {[%clk 0:01:34]}  Rxa8 {[%clk 0:02:11]} 19. Bf4 {[%clk 0:01:26]}  Ng6 {[%clk 0:02:00]} 20. Rad1 {[%clk 0:01:03]}  Nxf4+ {[%clk 0:01:56]} 21. Rxf4 {[%clk 0:01:02]}  Qxb2 {[%clk 0:01:56]} 22. Rd7 {[%clk 0:00:46]}  Bf6 {[%clk 0:01:56]} 23. h4 {[%clk 0:00:32]}  Qa2 {[%clk 0:01:43]} 24. Qf3 {[%clk 0:00:22]}  Qxc2+ {[%clk 0:01:37]} 25. Kh3 {[%clk 0:00:21]}  Rf8 {[%clk 0:01:33]} 26. Rxa7 {[%clk 0:00:16]}  b3 {[%clk 0:01:31]} 27. Rb7 {[%clk 0:00:15]}  b2 {[%clk 0:01:31]} 28. Qb3 {[%clk 0:00:14]}  Qc1 {[%clk 0:01:24]} 29. Kg2 {[%clk 0:00:11]}  Rd8 {[%clk 0:01:24]} 30. Rb8 {[%clk 0:00:09]}  h5 {[%clk 0:00:28]} 31. Rxf6 {[%clk 0:00:06]}  Qd2+ {[%clk 0:00:22]} 32. Rf2 {[%clk 0:00:05]}  Rxb8 {[%clk 0:00:11]} 33. Qxb8+ {[%clk 0:00:06]}  Kh7 {[%clk 0:00:11]} 34. Qxb2 {[%clk 0:00:06]} 1-0


[Site "https://www.chess.com"]

[Event "Titled Tuesday Blitz August 22 Late 2023"]
[White "Bueno, Alfeu Junior Varela"]
[Black "Magallanes, Rey Jomar"]
[WhiteFideId "2108879"]
[BlackFideId "5205948"]
[WhiteElo "2413"]
[BlackElo "2246"]
[Result "1-0"]
[Round "5"]
[TimeControl "180+1"]
[Date "2023.08.22"]
[WhiteClock "0:00:01"]
[BlackClock "0:02:22"]
[Board "168"]

1. e4 {[%clk 0:03:00]}  c5 {[%clk 0:02:59]} 2. Nc3 {[%clk 0:03:00]}  d6 {[%clk 0:02:59]} 3. f4 {[%clk 0:03:00]}  Nc6 {[%clk 0:02:59]} 4. Bb5 {[%clk 0:02:58]}  g6 {[%clk 0:02:56]} 5. Bxc6+ {[%clk 0:02:58]}  bxc6 {[%clk 0:02:57]} 6. d3 {[%clk 0:02:57]}  Bg7 {[%clk 0:02:58]} 7. Nf3 {[%clk 0:02:56]}  e6 {[%clk 0:02:58]} 8. O-O {[%clk 0:02:55]}  Ne7 {[%clk 0:02:59]} 9. e5 {[%clk 0:02:55]}  O-O {[%clk 0:03:00]} 10. Ne4 {[%clk 0:02:52]}  dxe5 {[%clk 0:02:42]} 11. fxe5 {[%clk 0:02:53]}  Qc7 {[%clk 0:02:42]} 12. Bg5 {[%clk 0:02:46]}  Nd5 {[%clk 0:02:39]} 13. c4 {[%clk 0:02:28]}  Nb4 {[%clk 0:02:33]} 14. a3 {[%clk 0:02:22]}  Na6 {[%clk 0:02:33]} 15. Nf6+ {[%clk 0:02:18]}  Kh8 {[%clk 0:02:33]} 16. Qe1 {[%clk 0:02:14]}  Nb8 {[%clk 0:02:31]} 17. Qh4 {[%clk 0:02:13]}  h5 {[%clk 0:02:28]} 18. g4 {[%clk 0:02:13]}  Nd7 {[%clk 0:02:27]} 19. gxh5 {[%clk 0:02:12]}  Nxf6 {[%clk 0:02:26]} 20. exf6 {[%clk 0:02:01]}  Bxf6 {[%clk 0:02:21]} 21. hxg6+ {[%clk 0:01:29]}  Kg8 {[%clk 0:02:22]} 22. Qh7# {[%clk 0:00:01]} 1-0


[Site "https://www.chess.com"]

[Event "Titled Tuesday Blitz August 22 Late 2023"]
[White "Petersson, Kjell"]
[Black "JerMorGurgeh"]
[WhiteFideId "1705148"]
[WhiteElo "2166"]
[BlackElo "2393"]
[Result "1-0"]
[Round "5"]
[TimeControl "180+1"]
[Date "2023.08.22"]
[WhiteClock "0:00:40"]
[BlackClock "0:00:00"]
[Board "174"]

1. d4 {[%clk 0:03:00]}  e6 {[%clk 0:02:58]} 2. Bf4 {[%clk 0:03:01]}  Nf6 {[%clk 0:02:57]} 3. e3 {[%clk 0:03:02]}  c5 {[%clk 0:02:55]} 4. c3 {[%clk 0:03:01]}  b6 {[%clk 0:02:54]} 5. Nf3 {[%clk 0:02:59]}  Bb7 {[%clk 0:02:53]} 6. Nbd2 {[%clk 0:02:58]}  cxd4 {[%clk 0:02:52]} 7. exd4 {[%clk 0:02:58]}  Be7 {[%clk 0:02:49]} 8. Bd3 {[%clk 0:02:56]}  O-O {[%clk 0:02:46]} 9. O-O {[%clk 0:02:56]}  d6 {[%clk 0:02:45]} 10. a4 {[%clk 0:02:48]}  a6 {[%clk 0:02:44]} 11. Qe2 {[%clk 0:02:41]}  Nbd7 {[%clk 0:02:41]} 12. Rfe1 {[%clk 0:02:40]}  Re8 {[%clk 0:02:39]} 13. h3 {[%clk 0:02:40]}  Qc7 {[%clk 0:02:38]} 14. Bg3 {[%clk 0:02:20]}  Bf8 {[%clk 0:02:35]} 15. c4 {[%clk 0:02:06]}  Qd8 {[%clk 0:02:11]} 16. Nb3 {[%clk 0:02:02]}  a5 {[%clk 0:01:58]} 17. Qd2 {[%clk 0:01:55]}  Bxf3 {[%clk 0:01:54]} 18. gxf3 {[%clk 0:01:54]}  Nh5 {[%clk 0:01:47]} 19. Kg2 {[%clk 0:01:52]}  g6 {[%clk 0:01:39]} 20. Qc2 {[%clk 0:01:36]}  Qg5 {[%clk 0:01:35]} 21. Qd2 {[%clk 0:01:33]}  Qf6 {[%clk 0:01:24]} 22. Qe3 {[%clk 0:01:27]}  e5 {[%clk 0:01:20]} 23. Rad1 {[%clk 0:01:21]}  exd4 {[%clk 0:01:14]} 24. Qxd4 {[%clk 0:01:22]}  Ne5 {[%clk 0:01:13]} 25. Be4 {[%clk 0:01:15]}  Rac8 {[%clk 0:00:54]} 26. Bd5 {[%clk 0:01:14]}  Bh6 {[%clk 0:00:48]} 27. Nc1 {[%clk 0:01:09]}  Nf4+ {[%clk 0:00:38]} 28. Bxf4 {[%clk 0:01:01]}  Bxf4 {[%clk 0:00:37]} 29. Ne2 {[%clk 0:00:59]}  g5 {[%clk 0:00:19]} 30. Ng3 {[%clk 0:00:58]}  Qg6 {[%clk 0:00:17]} 31. Qe4 {[%clk 0:00:57]}  Qf6 {[%clk 0:00:16]} 32. Qf5 {[%clk 0:00:55]}  Qe7 {[%clk 0:00:13]} 33. Be4 {[%clk 0:00:54]}  f6 {[%clk 0:00:12]} 34. Rxd6 {[%clk 0:00:52]}  Ng6 {[%clk 0:00:10]} 35. Qxf6 {[%clk 0:00:50]}  Qxf6 {[%clk 0:00:07]} 36. Rxf6 {[%clk 0:00:49]}  Rxc4 {[%clk 0:00:06]} 37. Bxg6 {[%clk 0:00:48]}  hxg6 {[%clk 0:00:05]} 38. Rxg6+ {[%clk 0:00:49]}  Kf7 {[%clk 0:00:05]} 39. Rxb6 {[%clk 0:00:48]}  Rxe1 {[%clk 0:00:04]} 40. Rb5 {[%clk 0:00:44]}  Re5 {[%clk 0:00:04]} 41. Rb7+ {[%clk 0:00:44]}  Ke8 {[%clk 0:00:03]} 42. Ne4 {[%clk 0:00:43]}  Rb4 {[%clk 0:00:00]} 43. Rh7 {[%clk 0:00:40]} 1-0


[Site "https://www.chess.com"]

[Event "Titled Tuesday Blitz August 22 Late 2023"]
[White "Gutierrez Espinosa, Karen"]
[Black "Melikhov, Evgeny V."]
[WhiteFideId "3513238"]
[BlackFideId "4122046"]
[WhiteElo "2131"]
[BlackElo "2389"]
[Result "0-1"]
[Round "5"]
[TimeControl "180+1"]
[Date "2023.08.22"]
[WhiteClock "0:00:00"]
[BlackClock "0:00:05"]
[Board "175"]

1. e4 {[%clk 0:03:00]}  c5 {[%clk 0:02:59]} 2. Nf3 {[%clk 0:02:58]}  d6 {[%clk 0:02:59]} 3. d4 {[%clk 0:02:58]}  cxd4 {[%clk 0:03:00]} 4. Nxd4 {[%clk 0:02:58]}  Nf6 {[%clk 0:02:59]} 5. Nc3 {[%clk 0:02:57]}  a6 {[%clk 0:03:00]} 6. Bc4 {[%clk 0:02:55]}  e6 {[%clk 0:02:59]} 7. Bb3 {[%clk 0:02:55]}  Nbd7 {[%clk 0:02:59]} 8. O-O {[%clk 0:02:51]}  Nc5 {[%clk 0:02:59]} 9. f4 {[%clk 0:02:49]}  Be7 {[%clk 0:02:56]} 10. e5 {[%clk 0:02:42]}  dxe5 {[%clk 0:02:34]} 11. fxe5 {[%clk 0:02:42]}  Nfd7 {[%clk 0:02:34]} 12. Bf4 {[%clk 0:02:40]}  O-O {[%clk 0:02:29]} 13. Qg4 {[%clk 0:02:31]}  Nf6 {[%clk 0:02:11]} 14. exf6 {[%clk 0:02:24]}  Qxd4+ {[%clk 0:02:10]} 15. Kh1 {[%clk 0:02:23]}  Bxf6 {[%clk 0:02:08]} 16. Rad1 {[%clk 0:02:06]}  e5 {[%clk 0:01:40]} 17. Qh5 {[%clk 0:01:45]}  Nxb3 {[%clk 0:01:25]} 18. Rxd4 {[%clk 0:01:40]}  Nxd4 {[%clk 0:01:17]} 19. Bxe5 {[%clk 0:01:35]}  Bxe5 {[%clk 0:01:15]} 20. Qxe5 {[%clk 0:01:34]}  Nc6 {[%clk 0:01:15]} 21. Qg3 {[%clk 0:01:31]}  Be6 {[%clk 0:01:12]} 22. Ne4 {[%clk 0:01:29]}  Rad8 {[%clk 0:01:07]} 23. h3 {[%clk 0:01:28]}  Kh8 {[%clk 0:01:00]} 24. Ng5 {[%clk 0:01:25]}  Bd5 {[%clk 0:00:56]} 25. Qh4 {[%clk 0:01:23]}  h6 {[%clk 0:00:56]} 26. Qh5 {[%clk 0:01:17]}  Kg8 {[%clk 0:00:54]} 27. Nf3 {[%clk 0:01:05]}  Be6 {[%clk 0:00:53]} 28. c3 {[%clk 0:01:00]}  Rd5 {[%clk 0:00:53]} 29. Qh4 {[%clk 0:01:00]}  Rfd8 {[%clk 0:00:52]} 30. Qg3 {[%clk 0:00:56]}  b5 {[%clk 0:00:48]} 31. Qc7 {[%clk 0:00:54]}  R5d6 {[%clk 0:00:44]} 32. Qb7 {[%clk 0:00:42]}  Na5 {[%clk 0:00:39]} 33. Qc7 {[%clk 0:00:39]}  Nc6 {[%clk 0:00:39]} 34. b3 {[%clk 0:00:38]}  Kh7 {[%clk 0:00:38]} 35. Qb7 {[%clk 0:00:36]}  Na5 {[%clk 0:00:35]} 36. Qe4+ {[%clk 0:00:36]}  Kg8 {[%clk 0:00:32]} 37. Ne5 {[%clk 0:00:36]}  Bd5 {[%clk 0:00:31]} 38. Qh4 {[%clk 0:00:33]}  Nc6 {[%clk 0:00:28]} 39. Nxc6 {[%clk 0:00:31]}  Bxc6 {[%clk 0:00:29]} 40. c4 {[%clk 0:00:29]}  bxc4 {[%clk 0:00:28]} 41. bxc4 {[%clk 0:00:28]}  Rd2 {[%clk 0:00:28]} 42. Rg1 {[%clk 0:00:28]}  R8d4 {[%clk 0:00:26]} 43. Qe7 {[%clk 0:00:27]}  Rxc4 {[%clk 0:00:25]} 44. a3 {[%clk 0:00:21]}  Rcc2 {[%clk 0:00:25]} 45. h4 {[%clk 0:00:11]}  h5 {[%clk 0:00:24]} 46. a4 {[%clk 0:00:08]}  g6 {[%clk 0:00:24]} 47. Qf6 {[%clk 0:00:08]}  Bxg2+ {[%clk 0:00:22]} 48. Kh2 {[%clk 0:00:07]}  Bd5+ {[%clk 0:00:21]} 49. Kg3 {[%clk 0:00:07]}  Rg2+ {[%clk 0:00:19]} 50. Rxg2 {[%clk 0:00:06]}  Rxg2+ {[%clk 0:00:19]} 51. Kh3 {[%clk 0:00:07]}  Rd2 {[%clk 0:00:17]} 52. Qd8+ {[%clk 0:00:07]}  Kg7 {[%clk 0:00:17]} 53. Qb8 {[%clk 0:00:07]}  Be6+ {[%clk 0:00:13]} 54. Kg3 {[%clk 0:00:06]}  Rd5 {[%clk 0:00:13]} 55. Qb6 {[%clk 0:00:05]}  a5 {[%clk 0:00:13]} 56. Qb2+ {[%clk 0:00:04]}  Kg8 {[%clk 0:00:12]} 57. Qc3 {[%clk 0:00:04]}  Rf5 {[%clk 0:00:11]} 58. Qb2 {[%clk 0:00:03]}  Kh7 {[%clk 0:00:10]} 59. Qb8 {[%clk 0:00:04]}  Rd5 {[%clk 0:00:09]} 60. Qc7 {[%clk 0:00:04]}  Rf5 {[%clk 0:00:06]} 61. Qd8 {[%clk 0:00:03]}  Rd5 {[%clk 0:00:06]} 62. Qf8 {[%clk 0:00:03]}  Rd4 {[%clk 0:00:05]} 63. Qe8 {[%clk 0:00:02]}  Rg4+ {[%clk 0:00:06]} 64. Kf3 {[%clk 0:00:02]}  Rxh4 {[%clk 0:00:06]} 65. Qb5 {[%clk 0:00:02]}  Rg4 {[%clk 0:00:05]} 66. Qxa5 {[%clk 0:00:02]}  h4 {[%clk 0:00:05]} 67. Qb5 {[%clk 0:00:02]}  h3 {[%clk 0:00:06]} 68. Qf1 {[%clk 0:00:00]}  Rh4 {[%clk 0:00:05]} 0-1


[Site "https://www.chess.com"]